[Event "Late-Titled-Tuesday-Blitz-January-16-2024"]
[Site "Chess.com"]
[Date "2024.01.16"]
[Round "2"]
[White "MKlose11"]
[Black "APOKALIPSA13"]
[Result "1-0"]
[WhiteElo "2647"]
[BlackElo "2154"]
[TimeControl "180+1"]
[EndTime "14:17:55 PST"]
[Termination "MKlose11 won on time"]

1. e4 {[%clk 0:02:54.8]} 1... e5 {[%clk 0:02:59.9]} 2. Nf3 {[%clk 0:02:49.5]}
2... d5 {[%clk 0:02:59.6]} 3. d4 {[%clk 0:02:50.4]} 3... dxe4 {[%clk 0:02:59.5]}
4. Nxe5 {[%clk 0:02:50.2]} 4... Bd6 {[%clk 0:02:59.9]} 5. Nc4 {[%clk 0:02:47.2]}
5... Be7 {[%clk 0:02:59.4]} 6. Ne3 {[%clk 0:02:43.2]} 6... Nf6 {[%clk
0:03:00.3]} 7. c4 {[%clk 0:02:43.3]} 7... c6 {[%clk 0:03:00]} 8. Nc3 {[%clk
0:02:43.4]} 8... O-O {[%clk 0:02:59.7]} 9. Be2 {[%clk 0:02:43.2]} 9... Re8
{[%clk 0:02:59.6]} 10. b3 {[%clk 0:02:42]} 10... Nbd7 {[%clk 0:02:55]} 11. Bb2
{[%clk 0:02:42.1]} 11... Nf8 {[%clk 0:02:54.5]} 12. d5 {[%clk 0:02:41.6]} 12...
Bc5 {[%clk 0:02:50.6]} 13. Qd2 {[%clk 0:02:37.1]} 13... Ng6 {[%clk 0:02:39.2]}
14. Rd1 {[%clk 0:02:24.2]} 14... Nf4 {[%clk 0:02:32.2]} 15. O-O {[%clk 0:02:16]}
15... Qe7 {[%clk 0:01:49]} 16. Na4 {[%clk 0:02:06.4]} 16... Bd6 {[%clk
0:01:28.5]} 17. c5 {[%clk 0:01:58.4]} 17... Bxc5 {[%clk 0:01:19.6]} 18. d6
{[%clk 0:01:52.9]} 18... Nxe2+ {[%clk 0:01:08.6]} 19. Qxe2 {[%clk 0:01:50.4]}
19... Bxd6 {[%clk 0:01:08.7]} 20. Nc4 {[%clk 0:01:42.7]} 20... Bc7 {[%clk
0:01:07]} 21. Ba3 {[%clk 0:01:42.5]} 21... Qe6 {[%clk 0:01:04.2]} 22. Nc5 {[%clk
0:01:40.5]} 22... Qg4 {[%clk 0:01:00.1]} 23. Qc2 {[%clk 0:01:10.7]} 23... Bxh2+
{[%clk 0:00:52.2]} 24. Kxh2 {[%clk 0:01:06.1]} 24... Qh4+ {[%clk 0:00:52.3]} 25.
Kg1 {[%clk 0:01:05.9]} 25... Ng4 {[%clk 0:00:52.4]} 26. Rfe1 {[%clk 0:00:58.8]}
26... Qh2+ {[%clk 0:00:39.6]} 27. Kf1 {[%clk 0:00:58]} 27... Qh1+ {[%clk
0:00:38.3]} 28. Ke2 {[%clk 0:00:58.2]} 28... Qxg2 {[%clk 0:00:38.4]} 29. Kd2
{[%clk 0:00:54.4]} 29... Nxf2 {[%clk 0:00:27.7]} 30. Kc1 {[%clk 0:00:48.8]}
30... Bf5 {[%clk 0:00:20.2]} 31. Ne3 {[%clk 0:00:46.1]} 31... Qg5 {[%clk
0:00:16.5]} 32. Qxf2 {[%clk 0:00:43.8]} 32... Bg6 {[%clk 0:00:15.5]} 33. Rg1
{[%clk 0:00:36.3]} 33... Qe5 {[%clk 0:00:15.1]} 34. Kb1 {[%clk 0:00:29.8]} 34...
Rad8 {[%clk 0:00:10]} 35. Na4 {[%clk 0:00:27.4]} 35... b5 {[%clk 0:00:07.7]} 36.
Bb2 {[%clk 0:00:25.4]} 36... Qe6 {[%clk 0:00:04.5]} 37. Nc5 {[%clk 0:00:22.3]}
37... Qc8 {[%clk 0:00:03.2]} 38. b4 {[%clk 0:00:21.5]} 38... Rxd1+ {[%clk
0:00:02.9]} 39. Rxd1 {[%clk 0:00:21.3]} 39... Qc7 {[%clk 0:00:01.2]} 40. Qc2
{[%clk 0:00:20.5]} 1-0

[Event "Late-Titled-Tuesday-Blitz-January-16-2024"]
[Site "Chess.com"]
[Date "2024.01.16"]
[Round "2"]
[White "AryanTari"]
[Black "stasOR4ik"]
[Result "0-1"]
[WhiteElo "2900"]
[BlackElo "2428"]
[TimeControl "180+1"]
[EndTime "14:17:55 PST"]
[Termination "stasOR4ik won by checkmate"]

1. d4 {[%clk 0:03:00.9]} 1... d5 {[%clk 0:02:59.7]} 2. Nf3 {[%clk 0:03:00.7]}
2... Nf6 {[%clk 0:03:00.3]} 3. Bf4 {[%clk 0:03:00.4]} 3... c6 {[%clk 0:02:57.6]}
4. c4 {[%clk 0:02:54.3]} 4... e6 {[%clk 0:02:55.9]} 5. e3 {[%clk 0:02:52.4]}
5... Ne4 {[%clk 0:02:55.6]} 6. Bd3 {[%clk 0:02:47.6]} 6... f5 {[%clk 0:02:53.4]}
7. O-O {[%clk 0:02:45.5]} 7... Be7 {[%clk 0:02:50.5]} 8. Ne5 {[%clk 0:02:28.1]}
8... O-O {[%clk 0:02:49.9]} 9. f3 {[%clk 0:02:28.1]} 9... Nd6 {[%clk 0:02:48]}
10. Nc3 {[%clk 0:02:26.2]} 10... Nd7 {[%clk 0:02:45.9]} 11. cxd5 {[%clk
0:02:10.8]} 11... exd5 {[%clk 0:02:44.3]} 12. Qc2 {[%clk 0:02:07.9]} 12... Nxe5
{[%clk 0:02:18.1]} 13. dxe5 {[%clk 0:01:48.2]} 13... Nc4 {[%clk 0:02:08.8]} 14.
b3 {[%clk 0:01:39.3]} 14... Nb6 {[%clk 0:01:59.9]} 15. g4 {[%clk 0:01:39]} 15...
d4 {[%clk 0:01:46.4]} 16. Ne2 {[%clk 0:01:36.5]} 16... g5 {[%clk 0:01:43.9]} 17.
gxf5 {[%clk 0:01:35.1]} 17... gxf4 {[%clk 0:01:43.2]} 18. f6 {[%clk 0:01:22.6]}
18... Bxf6 {[%clk 0:01:31.6]} 19. exf6 {[%clk 0:01:22.8]} 19... Qxf6 {[%clk
0:01:32.5]} 20. Nxf4 {[%clk 0:01:22.6]} 20... dxe3 {[%clk 0:01:30.7]} 21. Bxh7+
{[%clk 0:01:22.7]} 21... Kh8 {[%clk 0:01:14.3]} 22. Ng6+ {[%clk 0:01:20.8]}
22... Kxh7 {[%clk 0:01:14.8]} 23. Nxf8+ {[%clk 0:01:21.5]} 23... Kg8 {[%clk
0:01:13.5]} 24. Qg6+ {[%clk 0:01:21]} 24... Qg7 {[%clk 0:01:04.1]} 25. Qg3
{[%clk 0:01:09.7]} 25... Qxg3+ {[%clk 0:00:53.6]} 26. hxg3 {[%clk 0:01:09.8]}
26... Kxf8 {[%clk 0:00:54.3]} 27. Kg2 {[%clk 0:01:10.1]} 27... Nd5 {[%clk
0:00:51.1]} 28. Rh1 {[%clk 0:01:10.5]} 28... Kg7 {[%clk 0:00:50.9]} 29. g4
{[%clk 0:01:09.8]} 29... Be6 {[%clk 0:00:43.2]} 30. Kg3 {[%clk 0:01:10.2]} 30...
Rf8 {[%clk 0:00:37.3]} 31. Rae1 {[%clk 0:01:10]} 31... b5 {[%clk 0:00:30.9]} 32.
Rh5 {[%clk 0:01:09.9]} 32... a5 {[%clk 0:00:17.3]} 33. Re5 {[%clk 0:01:09.9]}
33... Bf7 {[%clk 0:00:14.9]} 34. f4 {[%clk 0:01:09.6]} 34... a4 {[%clk
0:00:13.4]} 35. f5 {[%clk 0:01:04.7]} 35... Kf6 {[%clk 0:00:12.2]} 36. Re4
{[%clk 0:01:04.8]} 36... Re8 {[%clk 0:00:08.7]} 37. Rxe8 {[%clk 0:00:59.8]}
37... Bxe8 {[%clk 0:00:09.6]} 38. bxa4 {[%clk 0:00:59.3]} 38... bxa4 {[%clk
0:00:09.7]} 39. Rc1 {[%clk 0:00:59.6]} 39... Kg5 {[%clk 0:00:08.5]} 40. Kf3
{[%clk 0:00:59.4]} 40... Bd7 {[%clk 0:00:06.5]} 41. Rg1 {[%clk 0:00:55]} 41...
c5 {[%clk 0:00:05.3]} 42. Ke4 {[%clk 0:00:55.4]} 42... Bc6 {[%clk 0:00:05.2]}
43. Ke5 {[%clk 0:00:55.1]} 43... Nc3 {[%clk 0:00:04.4]} 44. f6 {[%clk
0:00:52.7]} 44... Kg6 {[%clk 0:00:02.6]} 45. Ke6 {[%clk 0:00:50.4]} 45... Bd5+
{[%clk 0:00:01.4]} 46. Ke7 {[%clk 0:00:51.2]} 46... Bc4 {[%clk 0:00:01.4]} 47.
Rc1 {[%clk 0:00:51.1]} 47... e2 {[%clk 0:00:01.9]} 48. Re1 {[%clk 0:00:50.5]}
48... Nd1 {[%clk 0:00:02]} 49. Kd6 {[%clk 0:00:50.6]} 49... Ne3 {[%clk
0:00:01.2]} 50. f7 {[%clk 0:00:51]} 50... Kxf7 {[%clk 0:00:01.2]} 51. Kxc5
{[%clk 0:00:51.9]} 51... Nc2 {[%clk 0:00:01.3]} 52. Rf1+ {[%clk 0:00:52.8]}
52... exf1=Q {[%clk 0:00:01.1]} 53. g5 {[%clk 0:00:53.3]} 53... Kg6 {[%clk
0:00:01.9]} 54. Kd6 {[%clk 0:00:52.7]} 54... Kxg5 {[%clk 0:00:02.8]} 55. Kc5
{[%clk 0:00:53.6]} 55... Qd3 {[%clk 0:00:03]} 56. Kb6 {[%clk 0:00:54.5]} 56...
Qd5 {[%clk 0:00:03.3]} 57. Ka7 {[%clk 0:00:55.4]} 57... Qb5 {[%clk 0:00:03.6]}
58. a3 {[%clk 0:00:55.8]} 58... Ne3 {[%clk 0:00:03.2]} 59. Ka8 {[%clk
0:00:55.2]} 59... Bd5+ {[%clk 0:00:03.9]} 60. Ka7 {[%clk 0:00:56.1]} 60... Qb7#
{[%clk 0:00:04.5]} 0-1

[Event "Late-Titled-Tuesday-Blitz-January-16-2024"]
[Site "Chess.com"]
[Date "2024.01.16"]
[Round "2"]
[White "Pitomina-inactive"]
[Black "BardArtem"]
[Result "1/2-1/2"]
[WhiteElo "2550"]
[BlackElo "2815"]
[TimeControl "180+1"]
[EndTime "14:17:56 PST"]
[Termination "Game drawn by repetition"]

1. g4 {[%clk 0:03:00]} 1... e5 {[%clk 0:02:56.9]} 2. Bg2 {[%clk 0:02:59.5]} 2...
Ne7 {[%clk 0:02:56.8]} 3. c4 {[%clk 0:02:58.8]} 3... Ng6 {[%clk 0:02:56.7]} 4.
e3 {[%clk 0:02:49.3]} 4... Nh4 {[%clk 0:02:56.2]} 5. Be4 {[%clk 0:02:48.6]} 5...
d6 {[%clk 0:02:48.9]} 6. Nc3 {[%clk 0:02:45.8]} 6... Nd7 {[%clk 0:02:49]} 7. Qa4
{[%clk 0:02:33.8]} 7... c6 {[%clk 0:02:46.3]} 8. d4 {[%clk 0:02:22.3]} 8... Be7
{[%clk 0:02:37.8]} 9. Nf3 {[%clk 0:02:18.9]} 9... Nxf3+ {[%clk 0:02:32.9]} 10.
Bxf3 {[%clk 0:02:19.8]} 10... O-O {[%clk 0:02:33.7]} 11. Bd2 {[%clk 0:02:15]}
11... Nb6 {[%clk 0:02:30.6]} 12. Qb3 {[%clk 0:02:10.2]} 12... Be6 {[%clk
0:02:30.8]} 13. d5 {[%clk 0:02:09.3]} 13... cxd5 {[%clk 0:02:31.7]} 14. Nxd5
{[%clk 0:02:04.2]} 14... Rc8 {[%clk 0:02:26.6]} 15. Ba5 {[%clk 0:02:00]} 15...
Bxd5 {[%clk 0:02:19.1]} 16. Bxd5 {[%clk 0:02:00.9]} 16... Rc5 {[%clk 0:02:12.7]}
17. Bxb6 {[%clk 0:01:54]} 17... axb6 {[%clk 0:02:13.6]} 18. a4 {[%clk
0:01:53.7]} 18... Kh8 {[%clk 0:02:10.3]} 19. Qd3 {[%clk 0:01:52.2]} 19... Qa8
{[%clk 0:01:54.9]} 20. Ke2 {[%clk 0:01:49.5]} 20... Qc8 {[%clk 0:01:26.8]} 21.
Qe4 {[%clk 0:01:43.2]} 21... f5 {[%clk 0:01:15]} 22. gxf5 {[%clk 0:01:42.4]}
22... Rxf5 {[%clk 0:01:15.9]} 23. b3 {[%clk 0:01:39.5]} 23... Qf8 {[%clk
0:01:14.7]} 24. Raf1 {[%clk 0:01:38.7]} 24... Rh5 {[%clk 0:01:08.2]} 25. Rhg1
{[%clk 0:01:34.5]} 25... Rxh2 {[%clk 0:00:59.8]} 26. Rh1 {[%clk 0:01:34]} 26...
Rxh1 {[%clk 0:01:00.1]} 27. Rxh1 {[%clk 0:01:33.8]} 27... h6 {[%clk 0:01:00.7]}
28. Qg6 {[%clk 0:01:24.4]} 28... Rxd5 {[%clk 0:00:23.2]} 29. cxd5 {[%clk
0:01:25.3]} 29... Qc8 {[%clk 0:00:22.2]} 30. Kd2 {[%clk 0:01:16.7]} 30... Bf6
{[%clk 0:00:13.3]} 31. Rc1 {[%clk 0:01:15.8]} 31... Qg8 {[%clk 0:00:10]} 32. Rc7
{[%clk 0:01:10.5]} 32... Qxd5+ {[%clk 0:00:09.9]} 33. Ke2 {[%clk 0:01:11.1]}
33... Qg8 {[%clk 0:00:03.3]} 34. Rxb7 {[%clk 0:01:06.7]} 34... Qc8 {[%clk
0:00:03.6]} 35. Ra7 {[%clk 0:01:04.1]} 35... d5 {[%clk 0:00:03.2]} 36. Qd3
{[%clk 0:00:53.4]} 36... e4 {[%clk 0:00:02.8]} 37. Qxd5 {[%clk 0:00:45.6]} 37...
Qg4+ {[%clk 0:00:03.5]} 38. Kd2 {[%clk 0:00:44.1]} 38... Qf3 {[%clk 0:00:03.8]}
39. Ra8+ {[%clk 0:00:39.6]} 39... Kh7 {[%clk 0:00:04.5]} 40. Qg8+ {[%clk
0:00:40]} 40... Kg6 {[%clk 0:00:05.2]} 41. Qe8+ {[%clk 0:00:35.9]} 41... Kh7
{[%clk 0:00:05.7]} 42. Ke1 {[%clk 0:00:28.4]} 42... Bc3+ {[%clk 0:00:05.1]} 43.
Kf1 {[%clk 0:00:28.4]} 43... Qh1+ {[%clk 0:00:04.6]} 44. Ke2 {[%clk 0:00:28.7]}
44... Qf3+ {[%clk 0:00:05.3]} 45. Kf1 {[%clk 0:00:29]} 45... Qh1+ {[%clk
0:00:04]} 46. Ke2 {[%clk 0:00:29.4]} 46... Qf3+ {[%clk 0:00:04.4]} 47. Kf1
{[%clk 0:00:29.6]} 1/2-1/2

[Event "Late-Titled-Tuesday-Blitz-January-16-2024"]
[Site "Chess.com"]
[Date "2024.01.16"]
[Round "2"]
[White "Russian_berezka"]
[Black "frederiksvane"]
[Result "1-0"]
[WhiteElo "2585"]
[BlackElo "2894"]
[TimeControl "180+1"]
[EndTime "14:17:57 PST"]
[Termination "Russian_berezka won by resignation"]

1. d4 {[%clk 0:03:00.9]} 1... Nf6 {[%clk 0:02:59.6]} 2. Bf4 {[%clk 0:03:00.1]}
2... b6 {[%clk 0:02:59.7]} 3. e3 {[%clk 0:02:59.8]} 3... Bb7 {[%clk 0:02:59.5]}
4. Nf3 {[%clk 0:03:00.5]} 4... Nh5 {[%clk 0:02:59.9]} 5. Bg5 {[%clk 0:02:59.8]}
5... h6 {[%clk 0:03:00.4]} 6. Bh4 {[%clk 0:03:00.3]} 6... g5 {[%clk 0:03:01]} 7.
Nfd2 {[%clk 0:02:58.4]} 7... Nf4 {[%clk 0:02:55.6]} 8. Bg3 {[%clk 0:02:53.2]}
8... Nxg2+ {[%clk 0:02:55.7]} 9. Bxg2 {[%clk 0:02:52.8]} 9... Bxg2 {[%clk
0:02:56.6]} 10. Rg1 {[%clk 0:02:53.6]} 10... Bb7 {[%clk 0:02:56.6]} 11. Nc3
{[%clk 0:02:52.2]} 11... d6 {[%clk 0:02:56.2]} 12. Qh5 {[%clk 0:02:51.5]} 12...
Nd7 {[%clk 0:02:55.5]} 13. Nde4 {[%clk 0:02:48.9]} 13... Nf6 {[%clk 0:02:33.5]}
14. Nxf6+ {[%clk 0:02:48.7]} 14... exf6 {[%clk 0:02:34.2]} 15. O-O-O {[%clk
0:02:38.2]} 15... Qd7 {[%clk 0:02:27.7]} 16. d5 {[%clk 0:02:38.3]} 16... O-O-O
{[%clk 0:02:19.4]} 17. f4 {[%clk 0:02:29.9]} 17... Bg7 {[%clk 0:02:13.1]} 18.
Rgf1 {[%clk 0:02:21.9]} 18... f5 {[%clk 0:02:00]} 19. fxg5 {[%clk 0:02:19]}
19... Ba6 {[%clk 0:01:12.5]} 20. Rfe1 {[%clk 0:01:43.6]} 20... hxg5 {[%clk
0:00:55.9]} 21. Qxg5 {[%clk 0:01:43.6]} 21... Bxc3 {[%clk 0:00:53.6]} 22. bxc3
{[%clk 0:01:43.6]} 22... Qa4 {[%clk 0:00:49.2]} 23. Qxf5+ {[%clk 0:01:39]} 23...
Kb8 {[%clk 0:00:49.6]} 24. Qf4 {[%clk 0:01:22.3]} 24... Qxa2 {[%clk 0:00:27]}
25. Qb4 {[%clk 0:01:21.5]} 25... Bb7 {[%clk 0:00:18.6]} 26. c4 {[%clk
0:01:19.6]} 26... Rde8 {[%clk 0:00:14]} 27. Qb2 {[%clk 0:01:11.6]} 27... Qxc4
{[%clk 0:00:13.7]} 28. Rd4 {[%clk 0:01:06.8]} 28... Qc5 {[%clk 0:00:13.1]} 29.
c4 {[%clk 0:00:50.5]} 29... b5 {[%clk 0:00:08.6]} 30. Qxb5 {[%clk 0:00:47.2]}
30... Qa3+ {[%clk 0:00:05.8]} 31. Qb2 {[%clk 0:00:46.9]} 31... Rxe3 {[%clk
0:00:06.1]} 32. Qxa3 {[%clk 0:00:41.4]} 32... Rxa3 {[%clk 0:00:07]} 33. Re7
{[%clk 0:00:41.8]} 33... Rf3 {[%clk 0:00:07.7]} 34. c5 {[%clk 0:00:41.5]} 34...
dxc5 {[%clk 0:00:05]} 35. Rc4 {[%clk 0:00:41.6]} 35... Bxd5 {[%clk 0:00:04.8]}
36. Rxc5 {[%clk 0:00:42.1]} 36... Bb7 {[%clk 0:00:03.7]} 37. Rcxc7 {[%clk
0:00:41.6]} 37... Rxg3 {[%clk 0:00:02.2]} 38. Rxb7+ {[%clk 0:00:41.5]} 38... Kc8
{[%clk 0:00:02.6]} 39. Rec7+ {[%clk 0:00:37.7]} 39... Kd8 {[%clk 0:00:02.9]} 40.
Rd7+ {[%clk 0:00:38.4]} 40... Kc8 {[%clk 0:00:02.9]} 41. Rbc7+ {[%clk
0:00:38.4]} 41... Kb8 {[%clk 0:00:03.1]} 42. hxg3 {[%clk 0:00:39.1]} 42... Rh1+
{[%clk 0:00:03.4]} 43. Kd2 {[%clk 0:00:39.4]} 43... Rh2+ {[%clk 0:00:04.3]} 44.
Ke3 {[%clk 0:00:39.9]} 44... Rh3 {[%clk 0:00:04.8]} 45. Kf3 {[%clk 0:00:40.4]}
45... a5 {[%clk 0:00:04.7]} 46. Rxf7 {[%clk 0:00:39.4]} 46... a4 {[%clk
0:00:04.9]} 47. Rce7 {[%clk 0:00:39.6]} 47... Rh8 {[%clk 0:00:04.9]} 48. Rb7+
{[%clk 0:00:40.1]} 48... Ka8 {[%clk 0:00:04.9]} 49. Ra7+ {[%clk 0:00:40.4]}
49... Kb8 {[%clk 0:00:05.5]} 50. Rfb7+ {[%clk 0:00:40.8]} 50... Kc8 {[%clk
0:00:06.2]} 51. Ra8+ {[%clk 0:00:41.7]} 51... Kxb7 {[%clk 0:00:07.1]} 52. Rxh8
{[%clk 0:00:42.2]} 52... a3 {[%clk 0:00:07.7]} 53. Rh1 {[%clk 0:00:42.8]} 53...
Kc6 {[%clk 0:00:08.6]} 54. Ra1 {[%clk 0:00:43.7]} 54... Kc5 {[%clk 0:00:09.3]}
55. Rxa3 {[%clk 0:00:44.3]} 55... Kb4 {[%clk 0:00:10.2]} 56. Ra1 {[%clk
0:00:45]} 1-0

[Event "Late-Titled-Tuesday-Blitz-January-16-2024"]
[Site "Chess.com"]
[Date "2024.01.16"]
[Round "2"]
[White "sansanathalia"]
[Black "ArtemDyachuk"]
[Result "1-0"]
[WhiteElo "2382"]
[BlackElo "2650"]
[TimeControl "180+1"]
[EndTime "14:17:58 PST"]
[Termination "sansanathalia won on time"]

1. e4 {[%clk 0:03:00.9]} 1... c5 {[%clk 0:02:58.6]} 2. Nf3 {[%clk 0:03:00.2]}
2... d6 {[%clk 0:02:58.3]} 3. d4 {[%clk 0:02:58.5]} 3... cxd4 {[%clk 0:02:57.5]}
4. Qxd4 {[%clk 0:02:57.6]} 4... a6 {[%clk 0:02:46.7]} 5. c4 {[%clk 0:02:50.8]}
5... Nc6 {[%clk 0:02:45.8]} 6. Qd2 {[%clk 0:02:49.5]} 6... Nf6 {[%clk
0:02:44.5]} 7. Nc3 {[%clk 0:02:48.8]} 7... g6 {[%clk 0:02:45.1]} 8. Be2 {[%clk
0:02:48.6]} 8... Bh6 {[%clk 0:02:44.7]} 9. Qxh6 {[%clk 0:02:47.4]} 9... Be6
{[%clk 0:02:42.9]} 10. Qd2 {[%clk 0:02:44.8]} 10... O-O {[%clk 0:02:37.8]} 11.
O-O {[%clk 0:02:43.3]} 11... Qc7 {[%clk 0:02:35.2]} 12. b3 {[%clk 0:02:42.8]}
12... Ne5 {[%clk 0:02:34.4]} 13. Nxe5 {[%clk 0:02:42.2]} 13... dxe5 {[%clk
0:02:35.3]} 14. Bb2 {[%clk 0:02:41.4]} 14... Rfd8 {[%clk 0:02:34.2]} 15. Qe3
{[%clk 0:02:36]} 15... Rd4 {[%clk 0:02:22.4]} 16. Nd5 {[%clk 0:02:28.4]} 16...
Bxd5 {[%clk 0:02:21.7]} 17. exd5 {[%clk 0:02:23.1]} 17... Re4 {[%clk 0:02:21.1]}
18. Qf3 {[%clk 0:02:18]} 18... Rf4 {[%clk 0:02:20.1]} 19. Qg3 {[%clk 0:02:13.7]}
19... b5 {[%clk 0:02:04.3]} 20. Bd3 {[%clk 0:01:55.9]} 20... bxc4 {[%clk
0:01:41.3]} 21. Bxc4 {[%clk 0:01:48.9]} 21... Rf5 {[%clk 0:01:00.6]} 22. Rfe1
{[%clk 0:01:43.8]} 22... Nd7 {[%clk 0:00:59.1]} 23. Rad1 {[%clk 0:01:38.6]}
23... Qd6 {[%clk 0:00:57.2]} 24. Bd3 {[%clk 0:01:25.9]} 24... Rh5 {[%clk
0:00:43.9]} 25. Be2 {[%clk 0:01:21.4]} 25... Rf5 {[%clk 0:00:26.9]} 26. Bg4
{[%clk 0:01:17.6]} 26... Rg5 {[%clk 0:00:27.1]} 27. h4 {[%clk 0:01:17.2]} 27...
Rxg4 {[%clk 0:00:27.6]} 28. Qxg4 {[%clk 0:01:16.9]} 28... f5 {[%clk 0:00:25.6]}
29. Qg3 {[%clk 0:01:12.1]} 29... f4 {[%clk 0:00:13.9]} 30. Qg4 {[%clk
0:01:04.4]} 30... Kf7 {[%clk 0:00:11.9]} 31. Qe6+ {[%clk 0:01:00.9]} 31... Qxe6
{[%clk 0:00:12.4]} 32. dxe6+ {[%clk 0:01:01.3]} 32... Kxe6 {[%clk 0:00:13.3]}
33. Re2 {[%clk 0:00:55.5]} 33... Rc8 {[%clk 0:00:11.9]} 34. Rde1 {[%clk
0:00:53.3]} 34... Rc5 {[%clk 0:00:11.7]} 35. g3 {[%clk 0:00:51.1]} 35... Kf5
{[%clk 0:00:06.1]} 36. gxf4 {[%clk 0:00:47.6]} 36... Kxf4 {[%clk 0:00:07]} 37.
Ba3 {[%clk 0:00:46.9]} 37... Rd5 {[%clk 0:00:04.2]} 38. Bxe7 {[%clk 0:00:45.1]}
38... h6 {[%clk 0:00:04.3]} 39. Kg2 {[%clk 0:00:39.4]} 39... Rd4 {[%clk
0:00:02.7]} 40. Re3 {[%clk 0:00:34]} 40... Kf5 {[%clk 0:00:02.5]} 41. Ba3 {[%clk
0:00:27.8]} 41... Rg4+ {[%clk 0:00:01.7]} 42. Rg3 {[%clk 0:00:27.4]} 42... Rd4
{[%clk 0:00:01.9]} 43. Bb2 {[%clk 0:00:26.2]} 43... Rd1 {[%clk 0:00:01.5]} 44.
Rxd1 {[%clk 0:00:25.4]} 1-0

[Event "Late-Titled-Tuesday-Blitz-January-16-2024"]
[Site "Chess.com"]
[Date "2024.01.16"]
[Round "2"]
[White "ural58"]
[Black "ZuraTqebuchava"]
[Result "1-0"]
[WhiteElo "2472"]
[BlackElo "2140"]
[TimeControl "180+1"]
[EndTime "14:17:58 PST"]
[Termination "ural58 won on time"]

1. e4 {[%clk 0:03:00.9]} 1... e5 {[%clk 0:02:58]} 2. f4 {[%clk 0:02:58.1]} 2...
d6 {[%clk 0:02:56.8]} 3. Nc3 {[%clk 0:02:57.2]} 3... Nc6 {[%clk 0:02:55.2]} 4.
Bb5 {[%clk 0:02:57.1]} 4... a6 {[%clk 0:02:52.2]} 5. Bxc6+ {[%clk 0:02:56.6]}
5... bxc6 {[%clk 0:02:52.5]} 6. fxe5 {[%clk 0:02:56.3]} 6... dxe5 {[%clk
0:02:52.1]} 7. d3 {[%clk 0:02:56.3]} 7... Bc5 {[%clk 0:02:48]} 8. Qe2 {[%clk
0:02:51.8]} 8... h6 {[%clk 0:02:13.3]} 9. Be3 {[%clk 0:02:50.5]} 9... Bxe3
{[%clk 0:02:00.7]} 10. Qxe3 {[%clk 0:02:48.2]} 10... Qg5 {[%clk 0:01:53.3]} 11.
Qf2 {[%clk 0:02:19.1]} 11... Qf6 {[%clk 0:01:43.3]} 12. Nf3 {[%clk 0:02:11]}
12... Bg4 {[%clk 0:01:40.3]} 13. O-O {[%clk 0:02:05]} 13... Bxf3 {[%clk
0:01:29.2]} 14. Qxf3 {[%clk 0:02:03.3]} 14... Qxf3 {[%clk 0:01:28.1]} 15. Rxf3
{[%clk 0:02:03.9]} 15... Nf6 {[%clk 0:01:27.3]} 16. Raf1 {[%clk 0:01:59.5]}
16... Ke7 {[%clk 0:01:19.3]} 17. Na4 {[%clk 0:01:48.1]} 17... Rhb8 {[%clk
0:01:14.3]} 18. b3 {[%clk 0:01:46]} 18... Rf8 {[%clk 0:01:08.9]} 19. Nb2 {[%clk
0:01:38.9]} 19... Nd7 {[%clk 0:01:05.8]} 20. Rg3 {[%clk 0:01:30.6]} 20... g5
{[%clk 0:00:59]} 21. Rgf3 {[%clk 0:01:30.3]} 21... f6 {[%clk 0:00:58.1]} 22. Nc4
{[%clk 0:01:23.3]} 22... Nc5 {[%clk 0:00:52]} 23. Ne3 {[%clk 0:01:18.5]} 23...
Nd7 {[%clk 0:00:39.9]} 24. Nf5+ {[%clk 0:01:16.1]} 24... Ke6 {[%clk 0:00:37.3]}
25. Nxh6 {[%clk 0:01:15.9]} 25... Rh8 {[%clk 0:00:36.3]} 26. Ng4 {[%clk
0:01:11.1]} 26... Raf8 {[%clk 0:00:33.9]} 27. Ne3 {[%clk 0:01:04.7]} 27... Ke7
{[%clk 0:00:25.3]} 28. h3 {[%clk 0:01:02.5]} 28... Nc5 {[%clk 0:00:24.2]} 29.
Nf5+ {[%clk 0:01:02]} 29... Ke6 {[%clk 0:00:23.1]} 30. Ne3 {[%clk 0:01:01.2]}
30... Ke7 {[%clk 0:00:22.4]} 31. Ng4 {[%clk 0:01:01.2]} 31... Nd7 {[%clk
0:00:14.4]} 32. Rd1 {[%clk 0:01:01.2]} 32... Rh4 {[%clk 0:00:11.2]} 33. Ne3
{[%clk 0:00:54.9]} 33... Ke6 {[%clk 0:00:08.8]} 34. c3 {[%clk 0:00:52.3]} 34...
Rf4 {[%clk 0:00:08.2]} 35. Kf2 {[%clk 0:00:50.3]} 35... Ke7 {[%clk 0:00:04.8]}
36. g3 {[%clk 0:00:49.8]} 36... Rxf3+ {[%clk 0:00:04.3]} 37. Kxf3 {[%clk
0:00:50.5]} 37... Nc5 {[%clk 0:00:04.5]} 38. d4 {[%clk 0:00:47.3]} 38... exd4
{[%clk 0:00:04.3]} 39. cxd4 {[%clk 0:00:47.6]} 39... Ne6 {[%clk 0:00:05]} 40. d5
{[%clk 0:00:47.6]} 40... cxd5 {[%clk 0:00:04.6]} 41. Nxd5+ {[%clk 0:00:47.1]}
41... Kf7 {[%clk 0:00:04.3]} 42. Rc1 {[%clk 0:00:46.3]} 42... Rc8 {[%clk
0:00:03.9]} 43. Nb4 {[%clk 0:00:45.5]} 43... Nd4+ {[%clk 0:00:03.9]} 44. Ke3
{[%clk 0:00:45.4]} 44... Ne6 {[%clk 0:00:03.2]} 45. Nxa6 {[%clk 0:00:45.2]}
45... Ra8 {[%clk 0:00:03.1]} 46. Rc6 {[%clk 0:00:44.4]} 46... Ra7 {[%clk
0:00:01.9]} 47. a4 {[%clk 0:00:43.7]} 47... Ke7 {[%clk 0:00:01.5]} 48. Nc5
{[%clk 0:00:42.6]} 1-0